bitfinex-derivatives/quotes_ETHF0:USTF0_20260117
["timestamp","ask_amount","ask_price","bid_price","bid_amount"]
[1768610793058,0.87333953,3295.3,3294.0,0.98372193]
[1768610793257,0.98372193,3295.4,3294.0,0.98372193]
[1768610793457,0.87333334,3295.3,3294.0,0.98372193]
[1768610793658,0.98372193,3295.4,3294.0,0.98372193]
[1768610793862,0.8733311,3295.3,3294.0,0.98372193]
[1768610794161,0.98372193,3295.4,3294.0,0.98372193]
[1768610794363,0.87336328,3295.3,3294.0,0.98372193]
[1768610794558,0.98372193,3295.4,3294.0,0.98372193]
[1768610794760,0.87335334,3295.3,3294.0,0.98372193]
[1768610795061,0.98372193,3295.4,3294.0,0.98372193]
[1768610795274,0.87335252,3295.3,3294.0,0.98372193]
[1768610795457,0.98372193,3295.4,3294.0,0.98372193]
[1768610795658,0.87334443,3295.3,3294.0,0.98372193]
[1768610795858,1.42466866,3295.4,3294.0,0.98372193]
[1768610796063,0.87334452,3295.3,3294.0,0.98372193]
[1768610796261,1.42466866,3295.4,3294.0,0.98372193]
[1768610796464,0.87337981,3295.3,3294.0,0.98372193]
[1768610796769,1.42466866,3295.4,3294.0,0.98372193]
[1768610797069,0.87339566,3295.3,3294.0,0.98372193]
[1768610797259,1.42466866,3295.4,3294.0,0.98372193]
[1768610797459,0.87338706,3295.3,3294.0,0.98372193]
[1768610797660,1.42466866,3295.4,3294.0,0.98372193]
[1768610797861,0.87351327,3295.3,3294.0,0.98372193]
[1768610798061,1.42466866,3295.4,3294.0,0.98372193]
[1768610798358,0.87356823,3295.3,3294.0,0.98372193]
[1768610798559,1.42466866,3295.4,3294.0,0.98372193]
[1768610798762,0.8735608,3295.3,3294.0,0.98372193]
[1768610799060,1.42466866,3295.4,3294.0,0.98372193]
[1768610799261,0.8735792,3295.3,3294.0,0.98372193]
[1768610799456,1.42466866,3295.4,3294.0,0.98372193]
[1768610799661,0.87357039,3295.3,3294.0,0.98372193]
[1768610799865,1.42466866,3295.4,3294.0,0.98372193]
[1768610800168,0.87358521,3295.3,3294.0,0.98372193]
[1768610800369,1.42466866,3295.4,3294.0,0.98372193]
[1768610800569,0.87358219,3295.3,3294.0,0.98372193]
[1768610800765,1.42466866,3295.4,3294.0,0.98372193]
[1768610800959,0.87359642,3295.3,3294.0,0.98372193]
[1768610801158,1.42466866,3295.4,3294.0,0.98372193]
[1768610801362,0.87359638,3295.3,3294.0,0.98372193]
[1768610801562,1.42466866,3295.4,3294.0,0.98372193]
[1768610801773,0.87360702,3295.3,3294.0,0.98372193]
[1768610801974,1.42466866,3295.4,3294.0,0.98372193]
[1768610802164,1.15046952,3295.3,3294.0,0.98372193]
[1768610802463,1.42466866,3295.4,3294.0,0.98372193]
[1768610802661,1.15051605,3295.3,3294.0,0.98372193]
[1768610802969,1.42466866,3295.4,3294.0,0.98372193]
[1768610803168,1.15063381,3295.3,3294.0,0.98372193]
[1768610803369,1.42466866,3295.4,3294.0,0.98372193]
[1768610803670,1.15069366,3295.3,3294.0,0.98372193]
[1768610803870,1.42466866,3295.4,3294.2,0.98372193]
[1768610804168,1.15073128,3295.3,3294.2,0.98372193]
[1768610804357,1.42466866,3295.4,3294.2,0.98372193]
[1768610804553,1.15083261,3295.3,3294.2,0.98372193]
[1768610804752,1.42466866,3295.4,3294.2,0.98372193]
[1768610804955,1.15084869,3295.3,3294.2,0.98372193]
[1768610805162,1.42466866,3295.4,3294.2,0.98372193]
[1768610805361,1.15085238,3295.3,3294.2,0.98372193]
[1768610805566,0.44094673,3295.4,3294.2,0.98372193]
[1768610805757,1.15086965,3295.3,3294.2,0.98372193]
[1768610805958,0.44094673,3295.4,3294.2,0.98372193]
[1768610806168,1.15086971,3295.3,3294.2,0.98372193]
[1768610806370,0.44094673,3295.4,3294.2,0.98372193]
[1768610806570,1.15089138,3295.3,3294.2,0.98372193]
[1768610806771,0.44094673,3295.4,3294.2,0.98372193]
[1768610806971,1.15089196,3295.3,3294.2,0.98372193]
[1768610807270,0.44094673,3295.4,3294.2,0.98372193]
[1768610807572,1.15092152,3295.3,3294.2,0.98372193]
[1768610807760,0.44094673,3295.4,3294.2,0.98372193]
[1768610807962,1.15092054,3295.3,3294.2,0.98372193]
[1768610808262,0.44094673,3295.4,3294.2,0.98372193]
[1768610808461,1.15095997,3295.3,3294.2,0.98372193]
[1768610808662,0.44094673,3295.4,3294.2,0.98372193]
[1768610808863,1.15096001,3295.3,3294.2,0.98372193]
[1768610809167,0.44094673,3295.4,3294.2,0.98372193]
[1768610809372,1.15096269,3295.3,3293.8,0.47363734]
[1768610809669,0.44094673,3295.4,3293.8,0.47363734]
[1768610809871,1.15101077,3295.3,3293.8,0.47363734]
[1768610810065,0.44094673,3295.4,3293.8,0.47363734]
[1768610810277,1.1509938,3295.3,3293.8,0.47363734]
[1768610810465,0.44094673,3295.4,3293.8,0.47363734]
[1768610810766,1.15105253,3295.3,3293.8,0.47363734]
[1768610810966,0.44094673,3295.4,3293.8,0.47363734]
[1768610811169,1.15105212,3295.3,3293.8,0.47363734]
[1768610811369,0.44094673,3295.4,3293.8,0.47363734]
[1768610811569,1.15112783,3295.3,3293.8,0.47363734]
[1768610811768,0.44094673,3295.4,3293.8,0.47363734]
[1768610811972,0.87411208,3295.3,3293.8,0.47363734]
[1768610812170,0.44094673,3295.4,3293.8,0.47363734]
[1768610812470,0.8741121,3295.3,3293.8,0.47363734]
[1768610812670,0.44094673,3295.4,3293.8,0.47363734]
[1768610812871,0.87411505,3295.3,3293.8,0.47363734]
[1768610813071,0.44094673,3295.4,3293.8,0.47363734]
[1768610813272,0.87411503,3295.3,3293.8,0.47363734]
[1768610813471,0.44094673,3295.4,3293.8,0.47363734]
[1768610813671,0.87411904,3295.3,3293.8,0.47363734]
[1768610813872,0.44094673,3295.4,3293.8,0.47363734]
[1768610814073,0.87411905,3295.3,3293.8,0.47363734]
[1768610814370,0.44094673,3295.4,3293.8,0.47363734]
[1768610814577,0.87412146,3295.3,3293.8,0.47363734]
[1768610814763,0.44094673,3295.4,3293.8,0.47363734]
[1768610814963,1.34860123,3295.3,3293.8,0.47363734]
[1768610815176,0.87412226,3295.2,3293.8,0.47363734]
[1768610817575,1.34860123,3295.2,3293.5,3.97419298]
[1768610817785,0.87412226,3295.1,3293.5,0.62715727]
[1768610817983,0.47447897,3295.2,3293.6,0.47527727]
[1768610818277,0.8741097,3295.1,3293.6,0.47527727]
[1768610818575,0.47447897,3295.2,3293.6,0.47527727]
[1768610818880,0.87402159,3295.1,3293.6,0.47527727]
[1768610819076,0.47447897,3295.2,3293.6,0.47527727]
[1768610819373,0.87401994,3295.1,3293.6,0.47527727]
[1768610819575,0.47447897,3295.2,3293.6,0.47527727]
[1768610819873,0.87396084,3295.1,3293.6,0.47527727]
[1768610820074,0.47447897,3295.2,3293.6,0.47527727]
[1768610820279,1.34844299,3295.1,3293.6,0.47527727]
[1768610820476,0.47447897,3294.9,3293.2,4.29759025]
[1768610823480,0.47447897,3294.9,3293.2,0.47527727]
[1768610830280,0.47447897,3294.9,3293.0,3.97421298]
[1768610830683,0.47447897,3294.9,3293.0,0.1519]
[1768610832283,0.47447897,3294.9,3293.0,0.62717727]
[1768610832484,0.47447897,3294.7,3293.0,0.62717727]
[1768610835083,0.47447897,3294.7,3292.9,0.00388597]
[1768610835288,0.47447897,3294.5,3292.9,0.47916324]
[1768610835482,0.62628897,3294.9,3292.9,0.47916324]
[1768610835687,1.34498119,3294.8,3292.9,0.47916324]
[1768610835889,1.34498119,3294.7,3292.9,0.47916324]
[1768610836087,0.87050222,3294.6,3292.9,0.47916324]
[1768610840797,0.87050222,3294.6,3293.2,1.45883599]
[1768610842891,0.47447897,3294.7,3293.2,1.45883599]
[1768610843692,0.15181,3294.9,3293.3,0.46172219]
[1768610843998,0.87011684,3294.8,3293.3,0.46172219]
[1768610844199,0.15181,3294.9,3293.3,0.46172219]
[1768610844404,0.87011645,3294.8,3293.3,0.46172219]
[1768610844593,0.15181,3294.9,3293.3,0.46172219]
[1768610844789,0.87010084,3294.8,3293.3,0.46172219]
[1768610844990,0.15181,3294.9,3293.3,0.46172219]
[1768610845198,0.87007878,3294.8,3293.3,0.46172219]
[1768610845401,0.15181,3294.9,3293.3,0.46172219]
[1768610845597,0.8701685,3294.8,3293.3,0.46172219]
[1768610845899,0.15181,3294.9,3293.3,0.46172219]
[1768610846097,0.87015605,3294.8,3293.3,0.46172219]
[1768610846299,0.15181,3294.9,3293.3,0.46172219]
[1768610846505,0.8702427,3294.8,3293.3,0.46172219]
[1768610846692,0.15181,3294.9,3293.3,0.46172219]
[1768610846990,0.8702427,3294.8,3293.3,0.46172219]
[1768610847191,0.15181,3294.9,3293.3,0.46172219]
[1768610847392,0.87027729,3294.8,3293.3,0.46172219]
[1768610847596,0.43696057,3295.1,3293.3,0.46172219]
[1768610847818,0.87042284,3295.0,3293.3,0.46172219]
[1768610848111,0.87042284,3294.9,3293.3,0.46172219]
[1768610848315,0.43696057,3295.1,3293.3,0.46172219]
[1768610849410,0.87069471,3295.0,3293.3,0.46172219]
[1768610849606,0.43696057,3295.1,3293.3,0.46172219]
[1768610859723,0.44547842,3294.9,3293.2,0.15189]
[1768610860323,0.44547842,3294.8,3293.2,0.15189]
[1768610862431,0.44547842,3294.8,3292.9,0.48122499]
[1768610863632,0.44547842,3294.8,3292.9,0.00388597]
[1768610869433,0.44547842,3294.5,3293.3,0.98411786]
[1768610883546,0.98411786,3294.8,3293.5,0.98411786]
[1768610883743,0.8724156,3294.7,3293.5,0.98411786]
[1768610883943,0.98411786,3294.8,3293.5,0.98411786]
[1768610884142,0.87241687,3294.7,3293.5,0.98411786]
[1768610884333,0.98411786,3294.8,3293.5,0.98411786]
[1768610884531,0.87247477,3294.7,3293.5,0.98411786]
[1768610884733,1.4351161,3294.8,3293.5,0.98411786]
[1768610884933,0.87247382,3294.7,3293.5,0.98411786]
[1768610885146,1.4351161,3294.8,3293.5,0.98411786]
[1768610885449,0.87254337,3294.7,3293.5,0.98411786]
[1768610885649,1.4351161,3294.8,3293.5,0.98411786]
[1768610885848,0.87254425,3294.7,3293.5,0.98411786]
[1768610886146,1.4351161,3294.8,3293.5,0.98411786]
[1768610886346,0.87262356,3294.7,3293.5,0.98411786]
[1768610886646,1.4351161,3294.8,3293.5,0.98411786]
[1768610886836,0.87262044,3294.7,3293.5,0.98411786]
[1768610887037,1.4351161,3294.8,3293.5,0.98411786]
[1768610887238,0.87270473,3294.7,3293.5,0.98411786]
[1768610887539,1.4351161,3294.8,3293.5,0.98411786]
[1768610887738,0.87271534,3294.7,3293.5,0.98411786]
[1768610887938,0.87271534,3294.6,3293.5,0.98411786]
[1768610888246,1.4351161,3294.8,3293.5,0.98411786]
[1768610888453,0.87287959,3294.7,3293.5,0.98411786]
[1768610888740,1.32387783,3294.6,3293.3,0.98411786]
[1768610888947,0.45099824,3294.5,3293.3,0.98411786]
[1768610893939,0.45099824,3294.5,3293.4,0.98411786]
[1768610898049,0.98411786,3294.8,3293.4,0.98411786]
[1768610898350,0.87359987,3294.7,3293.4,0.98411786]
[1768610898648,1.4351161,3294.8,3293.4,0.98411786]
[1768610898845,0.87360183,3294.7,3293.4,0.98411786]
[1768610899046,1.4351161,3294.8,3293.4,0.98411786]
[1768610899244,0.8736023,3294.7,3293.4,0.98411786]
[1768610899445,1.4351161,3294.8,3293.4,0.98411786]
[1768610899750,0.87360309,3294.7,3293.6,0.98411786]
[1768610899954,0.45099824,3294.8,3293.6,0.98411786]
[1768610900254,0.87360348,3294.7,3293.6,0.98411786]
[1768610900555,0.45099824,3294.8,3293.6,0.98411786]
[1768610900851,0.87360536,3294.7,3293.6,0.98411786]
[1768610901053,0.45099824,3294.8,3293.1,0.45472019]
[1768610901250,0.87360484,3294.7,3293.7,0.98411786]
[1768610901450,0.45099824,3294.8,3293.7,0.98411786]
[1768610901651,0.87360435,3294.7,3293.7,0.98411786]
[1768610901950,0.45099824,3294.8,3293.7,0.98411786]
[1768610902150,0.87360405,3294.7,3293.7,0.98411786]
[1768610902349,0.45099824,3294.8,3293.7,0.98411786]
[1768610902551,0.87360432,3294.7,3293.7,0.98411786]
[1768610902754,0.45099824,3294.8,3293.7,0.98411786]
[1768610903052,0.87363131,3294.7,3293.7,0.98411786]
[1768610903254,0.45099824,3294.8,3293.7,0.98411786]
[1768610903449,0.87372879,3294.7,3293.7,0.98411786]
[1768610903648,0.45099824,3294.8,3293.7,0.98411786]
[1768610903957,0.87372794,3294.7,3293.7,0.98411786]
[1768610904250,0.45099824,3294.8,3293.7,0.98411786]
[1768610904456,0.87378173,3294.7,3293.5,0.98411786]
[1768610904655,1.4351161,3294.8,3293.5,0.98411786]
[1768610904857,0.87378749,3294.7,3293.5,0.98411786]
[1768610905156,1.4351161,3294.8,3293.5,0.98411786]
[1768610905352,0.8738093,3294.7,3293.5,0.98411786]
[1768610905552,1.4351161,3294.8,3293.5,0.98411786]
[1768610905754,0.8738093,3294.7,3293.5,0.98411786]
[1768610905953,1.4351161,3294.8,3293.5,0.98411786]
[1768610906254,0.87380835,3294.7,3293.5,0.98411786]
[1768610906448,1.4351161,3294.8,3293.5,0.98411786]
[1768610906649,0.87380747,3294.7,3293.5,0.98411786]
[1768610906943,1.4351161,3294.8,3293.5,0.98411786]
[1768610907148,0.87380747,3294.7,3293.5,0.98411786]
[1768610907351,1.4351161,3294.8,3293.5,0.98411786]
[1768610907550,0.87380745,3294.7,3293.5,0.98411786]
[1768610907765,1.4351161,3294.8,3293.5,0.98411786]
[1768610908057,0.87380741,3294.7,3293.5,0.98411786]
[1768610908247,1.4351161,3294.8,3293.5,0.98411786]
[1768610908443,0.87381974,3294.7,3293.5,0.98411786]
[1768610908663,1.4351161,3294.8,3293.5,0.98411786]
[1768610908956,0.87387278,3294.7,3293.5,0.98411786]
[1768610909159,1.4351161,3294.8,3293.5,0.98411786]
[1768610909347,0.87387258,3294.7,3293.5,0.98411786]
[1768610909544,0.45367291,3294.7,3293.5,0.98411786]
[1768610911457,0.98411786,3294.6,3293.1,0.45472019]
[1768610911654,0.45593455,3294.5,3293.0,4.95833084]
[1768610911953,0.45593455,3294.5,3293.2,0.98411786]
[1768610913161,0.45593455,3294.5,3293.4,0.98411786]
[1768610916260,0.45593455,3294.5,3293.6,0.98411786]
[1768610916565,0.45593455,3294.9,3293.6,0.98411786]
[1768610916764,0.87133776,3294.8,3293.6,0.98411786]
[1768610917063,0.87133776,3294.7,3293.8,0.98411786]
[1768610917263,0.45593455,3294.9,3293.8,0.98411786]
[1768610917454,0.87147735,3294.8,3293.8,0.98411786]
[1768610917660,0.87147735,3294.7,3293.8,0.98411786]
[1768610917861,0.45593455,3294.9,3293.8,0.98411786]
[1768610918061,0.87147607,3294.8,3293.8,0.98411786]
[1768610918266,0.87147607,3294.7,3293.8,0.98411786]
[1768610918466,0.45593455,3294.9,3293.8,0.98411786]
[1768610918764,0.87149525,3294.8,3293.8,0.98411786]
[1768610918966,0.87149525,3294.7,3293.8,0.98411786]
[1768610919266,0.45593455,3294.9,3293.8,0.98411786]
[1768610919467,0.87147473,3294.8,3293.8,0.98411786]
[1768610919665,0.45593455,3294.9,3293.8,0.98411786]
[1768610919870,0.8714747,3294.8,3293.8,0.98411786]
[1768610920072,0.45593455,3294.9,3293.8,0.98411786]
[1768610920366,0.87147578,3294.8,3293.8,0.98411786]
[1768610920561,0.45593455,3294.9,3293.8,0.98411786]
[1768610920761,0.87138174,3294.8,3293.8,0.98411786]
[1768610920967,0.45593455,3294.9,3293.8,0.98411786]
[1768610921162,0.87138163,3294.8,3293.8,0.98411786]
[1768610921366,0.45593455,3294.9,3293.8,0.98411786]
[1768610921568,0.87132044,3294.8,3293.8,0.98411786]
[1768610921769,0.45593455,3294.9,3293.8,0.98411786]
[1768610922069,0.87132044,3294.8,3293.8,0.98411786]
[1768610922270,0.45593455,3294.9,3293.8,0.98411786]
[1768610922476,0.8712721,3294.8,3293.8,0.98411786]
[1768610922660,0.45593455,3294.9,3293.8,0.98411786]
[1768610922860,0.8712721,3294.8,3293.8,0.98411786]
[1768610923060,0.8712721,3294.7,3294.2,0.98411786]
[1768610923268,0.8712721,3294.6,3294.0,0.98411786]
[1768610923570,0.45593455,3294.9,3294.0,0.98411786]
[1768610923760,0.87120993,3294.8,3294.0,0.98411786]
[1768610924062,0.87120993,3294.7,3294.0,0.98411786]
[1768610924264,0.87120993,3294.6,3294.0,0.98411786]
[1768610924561,0.45593455,3294.9,3294.0,0.98411786]
[1768610924770,0.87114512,3294.8,3294.0,0.98411786]
[1768610925070,0.87114512,3294.7,3294.0,0.98411786]
[1768610925270,0.87114512,3294.6,3294.0,0.98411786]
[1768610925458,0.45593455,3294.9,3294.0,0.98411786]
[1768610925663,0.87109341,3294.8,3294.0,0.98411786]
[1768610925864,0.87109341,3294.7,3294.0,0.98411786]
[1768610926069,0.87109341,3294.6,3294.0,0.98411786]
[1768610926370,0.45593455,3294.9,3294.0,0.98411786]
[1768610926577,0.87105151,3294.8,3294.0,0.98411786]
[1768610926770,0.87105151,3294.7,3294.0,0.98411786]
[1768610926974,0.45593455,3294.9,3294.0,0.98411786]
[1768610927172,0.87105083,3294.8,3294.0,0.98411786]
[1768610927474,0.87105083,3294.7,3294.0,0.98411786]
[1768610927676,0.45593455,3294.9,3294.0,0.98411786]
[1768610927972,0.87101451,3294.8,3294.0,0.98411786]
[1768610928272,0.87101451,3294.7,3294.0,0.98411786]
[1768610928462,0.45593455,3294.9,3294.0,0.98411786]
[1768610928662,0.87098431,3294.8,3294.0,0.98411786]
[1768610928863,0.87098431,3294.7,3294.0,0.98411786]
[1768610929069,0.45593455,3294.9,3294.0,0.98411786]
[1768610929272,0.87098383,3294.8,3294.0,0.98411786]
[1768610929461,0.87098383,3294.7,3294.0,0.98411786]
[1768610929659,0.45593455,3294.9,3294.0,0.98411786]
[1768610929874,0.87095605,3294.8,3294.0,0.98411786]
[1768610930074,0.87095605,3294.7,3294.0,0.98411786]
[1768610930280,0.45593455,3294.9,3294.0,0.98411786]
[1768610930572,0.8709368,3294.8,3294.0,0.98411786]
[1768610930763,0.8709368,3294.7,3294.0,0.98411786]
[1768610930964,0.45593455,3294.9,3294.0,0.98411786]
[1768610931164,0.87093687,3294.8,3294.0,0.98411786]
[1768610931364,0.87093687,3294.7,3293.5,0.98376432]
[1768610931564,0.45593455,3294.9,3293.5,0.98376432]
[1768610931758,0.87092016,3294.8,3293.5,0.98376432]
[1768610931957,0.87092016,3294.7,3293.5,0.98376432]
[1768610932171,0.45593455,3294.9,3293.5,0.98376432]
[1768610932373,0.87090727,3294.8,3293.5,0.98376432]
[1768610932675,0.87090727,3294.7,3293.5,0.98376432]
[1768610932865,0.45593455,3294.9,3293.5,0.98376432]
[1768610943482,0.46278997,3295.3,3293.9,0.98376432]
[1768610943685,1.14785761,3295.2,3293.9,0.98376432]
[1768610943976,0.46278997,3295.3,3293.9,0.98376432]
[1768610944285,1.14791138,3295.2,3293.9,0.98376432]
[1768610944480,0.46278997,3295.3,3293.9,0.98376432]
[1768610944785,1.14774138,3295.2,3293.9,0.98376432]
[1768610944981,0.46278997,3295.3,3293.9,0.98376432]
[1768610945178,2.31256997,3295.7,3294.0,0.46529656]
[1768610945376,1.14766951,3295.5,3294.0,0.46529656]
[1768610945576,1.14766951,3295.4,3294.0,0.46529656]
[1768610945773,0.46579681,3295.6,3294.0,0.46529656]
[1768610945976,1.61046434,3295.5,3294.0,0.46529656]
[1768610946177,1.14767437,3295.4,3294.0,0.46529656]
[1768610946377,0.46278997,3295.5,3294.0,0.46529656]
[1768610946578,1.14740586,3295.4,3294.0,0.46529656]
[1768610946778,0.46278997,3295.5,3294.0,0.46529656]
[1768610946989,1.14739778,3295.4,3294.0,0.46529656]
[1768610947177,0.46278997,3295.5,3294.0,0.46529656]
[1768610947474,0.87021885,3295.4,3294.0,0.46529656]
[1768610947674,0.46278997,3295.5,3294.0,0.46529656]
[1768610947880,0.87021872,3295.4,3294.0,0.46529656]
[1768610948171,0.46278997,3295.5,3294.0,0.46529656]
[1768610951492,0.46278997,3295.5,3293.6,0.46529656]
[1768610952994,0.86997313,3295.4,3293.6,0.46529656]
[1768610953293,0.46278997,3295.4,3293.6,0.46529656]
[1768610957711,0.46278997,3295.4,3293.9,1.44906088]
[1768610964005,0.86998976,3295.3,3293.9,1.44906088]
[1768610964205,0.46278997,3295.4,3293.9,1.44906088]
[1768610964408,0.87006103,3295.3,3293.9,1.44906088]
[1768610964610,0.46278997,3295.4,3293.9,1.44906088]
[1768610964801,0.87006243,3295.3,3293.9,1.44906088]
[1768610965001,0.46278997,3295.4,3293.9,1.44906088]
[1768610965201,0.87013769,3295.3,3293.9,1.44906088]
[1768610965402,0.46278997,3295.4,3293.9,1.44906088]
[1768610965609,0.87020787,3295.3,3293.9,1.44906088]
[1768610965809,0.46278997,3295.4,3293.9,1.44906088]
[1768610969517,0.46278997,3295.4,3293.9,0.46529656]
[1768610969814,0.47091563,3295.3,3293.6,0.15187]
[1768610972214,1.34763421,3295.2,3293.6,0.15187]
[1768610972507,0.47518271,3295.2,3293.6,0.15187]
[1768610973111,0.87245143,3295.1,3293.6,0.15187]
[1768610973312,0.87245143,3295.0,3293.6,0.15187]
[1768610973513,0.47518271,3295.2,3293.6,0.15187]
[1768610973712,1.34788434,3295.1,3293.6,0.15187]
[1768610974016,0.87270163,3295.0,3293.6,0.15187]
[1768610974213,0.47518271,3295.1,3293.6,0.15187]
[1768610974413,0.87271512,3295.0,3293.6,0.15187]
[1768610974620,0.47518271,3295.1,3293.6,0.15187]
[1768610974819,0.87271508,3295.0,3293.6,0.15187]
[1768610975119,0.47518271,3295.1,3293.6,0.15187]
[1768610975308,0.87272796,3295.0,3293.6,0.15187]
[1768610975506,0.47518271,3295.1,3293.6,0.15187]
[1768610975803,0.87272602,3295.0,3293.6,0.15187]
[1768610976007,0.47518271,3295.1,3293.6,0.15187]
[1768610976204,0.87272549,3295.0,3293.6,0.15187]
[1768610976415,0.47518271,3295.1,3293.6,0.15187]
[1768610976721,0.87270853,3295.0,3293.6,0.15187]
[1768610977019,0.47518271,3295.1,3293.6,0.15187]
[1768610977318,0.87270558,3295.0,3293.6,0.15187]
[1768610977516,0.47518271,3295.1,3293.6,0.15187]
[1768610977717,0.87269121,3295.0,3293.6,0.15187]
[1768610977918,0.47518271,3295.1,3293.6,0.15187]
[1768610978105,0.87269119,3295.0,3293.6,0.15187]
[1768610978305,0.47518271,3295.1,3293.6,0.15187]
[1768610978504,0.87267998,3295.0,3293.6,0.15187]
[1768610978707,0.47518271,3295.1,3293.6,0.15187]
[1768610978904,0.87260992,3295.0,3293.6,0.15187]
[1768610979121,0.47518271,3295.1,3293.6,0.15187]
[1768610979328,0.87259593,3295.0,3293.6,0.15187]
[1768610979618,0.47518271,3295.1,3293.6,0.15187]
[1768610979824,0.8725924,3295.0,3293.6,0.15187]
[1768610980012,0.47518271,3295.1,3293.6,0.15187]
[1768610980310,0.87255309,3295.0,3293.6,0.15187]
[1768610980513,0.47518271,3295.1,3293.6,0.15187]
[1768610980822,0.87253605,3295.0,3293.6,0.15187]
[1768610981023,0.47518271,3295.1,3293.6,0.15187]
[1768610981222,0.87252703,3295.0,3293.6,0.15187]
[1768610981411,0.47518271,3295.1,3293.6,0.15187]
[1768610981612,0.87246108,3295.0,3293.6,0.15187]
[1768610981819,0.47518271,3295.1,3293.6,0.15187]
[1768610982119,0.87246145,3295.0,3293.6,0.15187]
[1768610982313,0.47518271,3295.1,3293.6,0.15187]
[1768610982520,1.34761109,3295.0,3293.6,0.15187]
[1768610982713,0.87242838,3294.9,3293.6,0.15187]
[1768610982909,0.47518271,3295.0,3293.6,0.15187]
[1768610991324,0.47518271,3295.0,3293.9,0.98381772]
[1768610995520,0.47518271,3295.0,3294.1,0.98381772]
[1768611000826,0.4324039,3295.4,3294.1,0.98381772]
[1768611001024,0.15478684,3295.6,3294.1,0.98381772]
[1768611001025,2.56626591,3295.3,3294.1,0.98381772]
[1768611001326,1.15004429,3295.2,3294.1,0.98381772]
[1768611001623,1.15004429,3295.1,3294.1,0.98381772]
[1768611001826,1.41622162,3295.3,3294.1,0.98381772]
[1768611002018,1.30515002,3295.2,3294.1,0.98381772]
[1768611002218,0.87274612,3295.1,3294.1,0.98381772]
[1768611002427,1.30515002,3295.1,3293.6,0.15187]
[1768611002628,0.4324039,3295.0,3293.8,0.98381772]
[1768611004431,0.98381772,3295.3,3294.0,0.98381772]
[1768611004632,0.87560119,3295.2,3293.6,0.59678373]
[1768611004929,0.98381772,3295.3,3294.1,0.98381772]
[1768611005231,0.87560188,3295.2,3294.1,0.98381772]
[1768611005421,0.4324039,3295.4,3294.1,0.98381772]
[1768611005621,0.87561361,3295.3,3294.1,0.98381772]
[1768611005823,0.87561361,3295.2,3294.1,0.98381772]
[1768611006024,0.4324039,3295.4,3294.1,0.98381772]
[1768611006224,0.87561374,3295.3,3294.1,0.98381772]
[1768611006424,0.87561374,3295.2,3294.1,0.98381772]
[1768611006633,0.4324039,3295.4,3294.1,0.98381772]
[1768611006931,0.87562307,3295.3,3294.1,0.98381772]
[1768611007133,0.87562307,3295.2,3294.1,0.98381772]
[1768611007324,0.4324039,3295.4,3294.1,0.98381772]
[1768611007624,0.87563221,3295.3,3294.1,0.98381772]
[1768611007824,0.87563221,3295.2,3294.1,0.98381772]
[1768611008020,0.4324039,3295.4,3294.1,0.98381772]
[1768611008221,0.87563329,3295.3,3294.1,0.98381772]
[1768611008422,0.87563329,3295.2,3294.1,0.98381772]
[1768611008625,0.4324039,3295.4,3294.1,0.98381772]
[1768611008828,1.30804388,3295.3,3294.1,0.98381772]
[1768611009025,0.87563998,3295.2,3294.1,0.98381772]
[1768611010034,0.87563998,3295.2,3293.6,0.59678373]
[1768611010232,1.30804388,3295.2,3294.1,0.98381772]
[1768611010433,0.87563998,3295.1,3294.1,0.98381772]
[1768611011235,0.87563998,3295.1,3293.6,0.59678373]
[1768611011438,0.87563998,3295.1,3294.1,0.98381772]
[1768611013041,1.30804388,3295.1,3294.1,0.98381772]
[1768611013342,0.4324039,3295.1,3294.1,0.98381772]
[1768611014241,0.4324039,3295.1,3293.9,0.98381772]
[1768611020242,0.98381772,3294.7,3293.4,3.82231298]
[1768611020543,1.41622162,3294.7,3293.4,0.98381772]
[1768611023046,0.87504451,3294.6,3293.4,0.98381772]
[1768611023242,1.41622162,3294.7,3293.4,0.98381772]
[1768611023443,0.87490505,3294.6,3293.4,0.98381772]
[1768611023630,1.41622162,3294.7,3293.4,0.98381772]
[1768611023835,0.87490501,3294.6,3293.4,0.98381772]
[1768611024143,1.41622162,3294.7,3293.4,0.98381772]
[1768611024338,0.87478323,3294.6,3293.4,0.98381772]
[1768611024545,1.41622162,3294.7,3293.4,0.98381772]
[1768611024745,0.87476568,3294.6,3293.4,0.98381772]
[1768611024945,1.41622162,3294.7,3293.4,0.98381772]
[1768611025147,0.87485398,3294.6,3293.4,0.98381772]
[1768611025348,1.41622162,3294.7,3293.4,0.98381772]
[1768611025649,0.87476224,3294.6,3293.4,0.98381772]
[1768611025847,1.41622162,3294.7,3293.4,0.98381772]
[1768611026149,0.87478442,3294.6,3293.4,0.98381772]
[1768611026443,1.41622162,3294.7,3293.4,0.98381772]
[1768611026637,0.87467901,3294.6,3293.4,0.98381772]
[1768611026833,0.87468715,3294.5,3293.4,0.98381772]
[1768611027038,1.41622162,3294.7,3293.4,0.98381772]
[1768611027238,0.87468712,3294.6,3293.4,0.98381772]
[1768611027435,1.41622162,3294.7,3293.4,0.98381772]
[1768611027638,0.87456284,3294.6,3293.4,0.98381772]
[1768611027839,1.41622162,3294.7,3293.4,0.98381772]
[1768611028039,0.87459227,3294.6,3293.4,0.98381772]
[1768611028241,1.41622162,3294.7,3293.4,0.98381772]
[1768611028436,0.87449005,3294.6,3293.2,0.44491373]
[1768611028755,1.41483036,3294.3,3293.0,0.98381772]
[1768611030046,0.43101264,3294.3,3293.0,0.98381772]
[1768611030246,0.43101264,3294.3,3293.2,0.98381772]
[1768611032344,0.43305766,3294.2,3293.0,0.98381772]
[1768611034461,0.98381772,3294.1,3292.9,0.00388597]
[1768611034643,1.41687538,3294.1,3292.9,0.00388597]
[1768611034841,0.43305766,3294.1,3292.9,0.00388597]
[1768611035850,0.43305766,3294.1,3292.9,0.98770369]
[1768611051372,0.43305766,3294.1,3292.9,0.00388597]
[1768611060682,1.33585019,3294.0,3292.9,0.00388597]
[1768611060883,0.45875971,3293.9,3292.9,0.00388597]
[1768611062185,1.33586869,3293.8,3292.9,0.00388597]
[1768611062487,0.45875971,3293.8,3292.9,0.00388597]
[1768611063387,0.87760333,3293.7,3292.9,0.00388597]
[1768611063586,0.45875971,3293.8,3292.9,0.00388597]
[1768611063884,0.87754573,3293.7,3292.9,0.00388597]
[1768611064088,0.45875971,3293.8,3292.9,0.00388597]
[1768611064281,0.87743505,3293.7,3292.4,1.42498289]
[1768611064481,0.45875971,3293.8,3292.4,1.42498289]
[1768611064682,0.87749046,3293.7,3292.4,1.42498289]
[1768611064883,0.45875971,3293.8,3292.4,1.42498289]
[1768611065082,0.87768509,3293.7,3292.4,1.42498289]
[1768611065284,0.45875971,3293.8,3292.4,1.42892375]
[1768611065487,0.87760066,3293.7,3292.4,1.42892375]
[1768611065688,0.45875971,3293.8,3292.4,1.42892375]
[1768611065995,0.87759912,3293.7,3292.4,1.42892375]
[1768611066189,0.45875971,3293.8,3292.4,1.42892375]
[1768611066393,0.87752766,3293.7,3292.4,1.42892375]
[1768611066689,0.45875971,3293.8,3292.4,1.42892375]
[1768611066886,0.87752844,3293.7,3292.4,1.42892375]
[1768611067086,0.45875971,3293.8,3292.4,0.00394086]